bitfinex/quotes_SOLUSD_20241210
["timestamp","ask_amount","ask_price","bid_price","bid_amount"]
[1733819502666,23.776884,217.02,216.99,0.5661186]
[1733819503063,0.74017442,217.01,216.99,0.5661186]
[1733819503280,43.776884,217.0,216.99,0.5661186]
[1733819504861,43.776884,217.0,216.99,312.5661186]
[1733819505271,43.776884,217.0,216.99,0.5661186]
[1733819506277,20.0,217.0,216.99,0.5661186]
[1733819507952,43.776884,217.0,216.99,0.5661186]
[1733819508252,43.776884,217.0,216.99,312.5661186]
[1733819511775,43.776884,217.0,216.87,1.6571]
[1733819511960,24.51705842,216.99,216.87,1.6571]
[1733819512174,20.0,216.96,216.88,14.02291338]
[1733819512476,20.0,217.01,216.9,14.02291338]
[1733819512782,20.0,217.01,217.0,312.0]
[1733819514063,43.776884,217.01,217.0,312.0]
[1733819515483,43.776884,217.01,216.87,1.6571]
[1733819515484,20.0,216.97,216.87,1.6571]
[1733819515673,0.74017442,216.96,216.87,1.6571]
[1733819515869,20.0,216.97,216.87,1.6571]
[1733819515870,20.0,216.97,216.87,15.68001338]
[1733819516683,20.0,216.97,216.89,14.02291338]
[1733819518381,0.8162,217.06,216.96,312.0]
[1733819518597,0.74017442,217.05,216.96,312.0]
[1733819518964,0.74017442,217.05,216.91,14.02291338]
[1733819519688,23.776884,217.04,216.91,14.02291338]
[1733819519869,20.0,217.01,216.91,14.02291338]
[1733819521964,20.0,217.01,217.0,312.0]
[1733819522677,43.776884,217.01,217.0,312.0]
[1733819523193,23.776884,217.0,216.87,1.6571]
[1733819523485,23.776884,216.96,216.87,1.6571]
[1733819523668,23.776884,216.92,216.87,1.6571]
[1733819523860,0.74017442,216.92,216.82,1.6571]
[1733819524292,0.74017442,216.95,216.82,1.6571]
[1733819524481,0.74017442,216.95,216.82,15.68001338]
[1733819524871,0.74017442,216.95,216.8,6.3313]
[1733819526398,0.74017442,216.95,216.94,312.0]
[1733819526399,24.51705842,216.95,216.94,312.0]
[1733819526774,24.51705842,216.95,216.77,2.2232186]
[1733819527091,20.0,216.92,216.77,2.91496553]
[1733819527296,23.776884,216.9,216.77,2.91496553]
[1733819527480,20.0,216.87,216.77,2.2232186]
[1733819527679,0.74017442,216.86,216.77,2.2232186]
[1733819528269,0.74017442,216.86,216.77,0.5661186]
[1733819528604,23.776884,216.85,216.77,0.5661186]
[1733819528785,23.776884,216.81,216.77,0.5661186]
[1733819529105,20.0,216.78,216.77,0.5661186]
[1733819529603,20.74017442,216.78,216.77,0.5661186]
[1733819530199,20.0,216.82,216.77,0.5661186]
[1733819530394,0.74017442,216.84,216.77,0.5661186]
[1733819530694,0.74017442,216.84,216.83,312.0]
[1733819530897,0.74017442,216.85,216.83,312.0]
[1733819531074,1.55637442,216.88,216.83,312.0]
[1733819531275,0.74017442,216.88,216.77,0.5661186]
[1733819532469,0.74017442,216.9,216.77,0.5661186]
[1733819532688,20.0,216.87,216.77,0.5661186]
[1733819532897,0.74017442,216.89,216.77,15.28085063]
[1733819533475,0.74017442,216.89,216.78,14.02291338]
[1733819534000,0.74017442,216.9,216.78,14.02291338]
[1733819534204,0.74017442,216.9,216.89,312.0]
[1733819534390,0.74017442,216.93,216.89,312.0]
[1733819534702,0.74017442,216.93,216.81,14.02291338]
[1733819535784,20.74017442,216.93,216.8,14.02291338]
[1733819535985,20.74017442,216.93,216.78,14.02291338]
[1733819536192,20.74017442,216.93,216.77,15.28065923]
[1733819536390,20.74017442,216.93,216.78,14.02291338]
[1733819536888,20.74017442,216.93,216.8,14.02291338]
[1733819537100,20.74017442,216.93,216.81,14.02291338]
[1733819537682,20.74017442,216.93,216.92,312.0]
[1733819538619,20.0,216.93,216.92,312.0]
[1733819538825,1.55637442,217.0,216.92,312.0]
[1733819539126,1.55637442,217.0,216.86,14.02291338]
[1733819539416,1.55637442,217.0,216.81,31.467084]
[1733819539417,0.74017442,217.0,216.88,14.02291338]
[1733819539589,0.74017442,217.0,216.89,14.02291338]
[1733819539792,0.74017442,217.0,216.87,14.02291338]
[1733819540147,0.74017442,217.0,216.84,14.02291338]
[1733819540822,20.0,216.98,216.83,14.02291338]
[1733819541119,20.0,216.94,216.82,14.02291338]
[1733819541320,0.74017442,216.93,216.82,14.02291338]
[1733819541486,0.74017442,216.93,216.83,14.02291338]
[1733819541684,0.74017442,216.95,216.83,14.02291338]
[1733819541886,0.74017442,216.95,216.94,312.0]
[1733819542417,0.74017442,217.0,216.94,312.0]
[1733819542603,0.74017442,217.0,216.88,14.02291338]
[1733819543314,0.74017442,217.0,216.85,14.02291338]
[1733819543918,20.0,216.98,216.84,14.02291338]
[1733819544113,20.0,216.98,216.82,0.69149195]
[1733819544114,0.74017442,216.97,216.82,14.71440533]
[1733819545138,0.74017442,216.97,216.83,14.02291338]
[1733819545610,0.74017442,216.97,216.96,312.0]
[1733819546229,24.51705842,217.0,216.96,312.0]
[1733819546415,24.51705842,217.0,216.88,14.02291338]
[1733819546416,0.74017442,217.0,216.88,14.02291338]
[1733819546924,0.74017442,217.0,216.87,14.02291338]
[1733819547923,20.0,216.98,216.85,14.02291338]
[1733819548134,0.74017442,216.97,216.85,14.02291338]
[1733819548309,0.74017442,216.97,216.84,14.02291338]
[1733819548714,0.74017442,216.97,216.86,14.02291338]
[1733819549411,0.74017442,216.97,216.96,312.0]
[1733819549618,20.0,216.98,216.96,312.0]
[1733819550033,20.0,216.98,216.87,14.02291338]
[1733819550228,0.74017442,216.97,216.87,14.02291338]
[1733819550431,20.0,216.98,216.87,14.02291338]
[1733819550740,20.0,216.98,216.88,0.69140897]
[1733819551036,20.0,216.98,216.88,14.71432235]
[1733819551511,0.74017442,216.97,216.87,14.02291338]
[1733819551716,0.74017442,216.97,216.86,20.0]
[1733819551915,0.74017442,216.97,216.85,14.02291338]
[1733819552941,0.74017442,216.97,216.96,312.0]
[1733819554742,20.0,216.98,216.96,312.0]
[1733819554920,20.0,217.03,216.9,14.02291338]
[1733819555245,0.74017442,217.0,216.86,14.02291338]
[1733819556029,24.51705842,217.02,216.86,14.02291338]
[1733819556342,20.0,216.99,216.86,14.02291338]
[1733819556531,0.74017442,216.98,216.86,14.02291338]
[1733819557435,0.74017442,216.98,216.87,14.02291338]
[1733819557647,0.74017442,216.98,216.88,14.02291338]
[1733819557834,0.74017442,216.98,216.97,312.0]
[1733819558040,0.74017442,217.02,216.97,312.0]
[1733819558440,0.74017442,217.02,216.87,14.02291338]
[1733819561434,0.74017442,217.02,217.01,312.0]
[1733819562729,0.74017442,217.02,216.87,14.02291338]
[1733819563424,0.74017442,217.02,216.91,14.02291338]
[1733819563631,0.74017442,217.04,216.92,14.71415601]
[1733819564147,0.74017442,217.04,216.91,14.02291338]
[1733819564827,20.0,217.03,216.91,14.02291338]
[1733819565028,0.74017442,217.02,216.91,14.02291338]
[1733819565453,0.74017442,217.02,216.9,37.79979738]
[1733819565628,0.74017442,217.02,216.91,14.71422145]
[1733819565824,0.74017442,217.02,217.01,312.0]
[1733819566037,20.0,217.03,217.01,312.0]
[1733819566341,20.0,217.03,216.91,14.02291338]
[1733819566545,0.74017442,217.02,216.91,14.02291338]
[1733819566935,0.74017442,217.02,216.88,15.57511338]
[1733819567251,0.74017442,217.02,216.89,14.71428536]
[1733819568126,0.74017442,217.02,216.91,14.02291338]
[1733819568445,0.74017442,217.02,216.92,14.71418062]
[1733819568640,0.74017442,217.02,216.92,0.69126724]
[1733819569236,0.74017442,217.02,217.01,312.0]
[1733819569546,20.0,217.03,217.01,312.0]
[1733819569745,20.0,217.03,216.9,14.02291338]
[1733819569952,0.74017442,217.02,216.9,14.02291338]
[1733819570172,0.74017442,217.02,216.88,16.26643603]
[1733819571132,0.74017442,217.02,216.9,14.02291338]
[1733819571445,0.74017442,217.02,216.91,14.02291338]
[1733819571855,0.74017442,217.02,216.9,14.71421928]
[1733819572951,0.74017442,217.02,217.01,312.0]
[1733819573158,20.0,217.03,217.01,312.0]
[1733819573351,20.0,217.03,216.9,14.02291338]
[1733819573660,0.74017442,217.02,216.9,14.71421056]
[1733819573860,0.74017442,217.02,216.9,0.69129718]
[1733819574045,0.74017442,217.02,216.89,37.79979738]
[1733819574448,0.74017442,217.02,216.88,16.26647693]
[1733819574758,0.74017442,217.02,216.88,2.24356355]
[1733819575205,0.74017442,217.02,216.88,16.26647693]
[1733819575956,0.74017442,217.02,216.88,2.24356355]
[1733819576354,0.74017442,217.02,217.01,312.0]
[1733819576551,0.74017442,217.02,216.88,2.24356355]
[1733819576552,0.74017442,217.02,216.88,1.5522]
[1733819577558,0.74017442,217.02,216.88,15.57511338]
[1733819577740,0.74017442,217.02,216.89,14.02291338]
[1733819578160,0.74017442,217.02,216.88,15.57511338]
[1733819578670,0.74017442,217.02,216.88,1.5522]
[1733819578964,0.74017442,217.02,216.88,15.57511338]
[1733819579351,0.74017442,217.02,216.88,1.5522]
[1733819579663,0.74017442,217.02,217.0,312.0]
[1733819579867,0.74017442,217.02,216.85,34.02291338]
[1733819579868,20.0,216.98,216.85,34.02291338]
[1733819580069,20.0,216.94,216.83,14.02291338]
[1733819580253,0.74017442,216.93,216.83,14.02291338]
[1733819580455,0.74017442,216.93,216.82,15.53391338]
[1733819581788,0.74017442,216.93,216.8,14.02291338]
[1733819581996,0.74017442,216.93,216.79,14.02291338]
[1733819582357,20.0,216.89,216.77,0.5661186]
[1733819582579,8.04447442,216.88,216.77,0.5661186]
[1733819582984,8.04447442,216.88,216.86,312.0]
[1733819585068,0.8162,216.92,216.81,14.02291338]
[1733819585270,1.55637442,216.92,216.82,14.71457175]
[1733819585982,0.74017442,216.92,216.84,14.02291338]
[1733819586184,6.4881,216.93,216.83,14.02291338]
[1733819586396,0.74017442,216.92,216.83,14.02291338]
[1733819587782,20.0,216.9,216.8,1.511]
[1733819587987,0.74017442,216.89,216.8,1.511]
[1733819589701,6.4881,216.93,216.84,14.02291338]
[1733819589867,20.0,216.95,216.84,14.02291338]
[1733819590071,0.74017442,216.94,216.84,14.02291338]
[1733819590376,0.74017442,216.96,216.86,14.02291338]
[1733819590573,1.55637442,216.97,216.88,14.02291338]
[1733819590784,6.4881,216.98,216.89,14.02291338]
[1733819590991,0.74017442,217.0,216.97,312.0]
[1733819591594,0.74017442,217.0,216.88,14.02291338]
[1733819591897,0.74017442,217.01,216.89,14.02291338]
[1733819593100,20.0,217.0,216.87,20.0]
[1733819593279,0.74017442,216.99,216.87,14.02291338]
[1733819594095,0.74017442,216.99,216.87,14.71432727]
[1733819594286,0.74017442,216.99,216.88,14.02291338]
[1733819594486,0.74017442,216.99,216.98,312.0]
[1733819594698,20.0,217.0,216.98,312.0]
[1733819594996,20.0,217.0,216.9,14.02291338]
[1733819595200,0.74017442,216.99,216.9,14.02291338]
[1733819595402,1.55637442,217.02,216.91,14.02291338]
[1733819595896,1.55637442,217.02,216.89,15.55661338]
[1733819596106,1.55637442,217.02,216.89,1.5337]
[1733819596699,20.0,217.0,216.89,1.5337]
[1733819596892,0.74017442,216.99,216.89,1.5337]
[1733819598111,0.74017442,216.99,216.98,312.0]
[1733819598284,1.55637442,217.02,216.98,312.0]
[1733819598492,1.55637442,217.02,216.89,15.55661338]
[1733819598793,20.0,217.0,216.89,1.5337]
[1733819598989,0.74017442,216.99,216.89,1.5337]
[1733819599722,0.74017442,216.99,216.87,14.02291338]
[1733819600010,0.74017442,216.99,216.86,14.02291338]
[1733819600195,20.0,216.95,216.82,14.02291338]
[1733819600513,20.0,216.91,216.8,16.24809958]
[1733819600814,0.74017442,216.9,216.8,16.24809958]
[1733819601303,0.74017442,216.9,216.8,2.2251862]
[1733819601504,0.74017442,216.9,216.89,312.0]
[1733819602417,0.74017442,216.9,216.75,15.55661338]
[1733819602710,20.0,216.86,216.75,1.5337]
[1733819602914,0.74017442,216.85,216.75,1.5337]
[1733819603614,24.51705842,216.9,216.75,1.5337]
[1733819604116,20.0,216.87,216.75,1.5337]
[1733819604295,0.74017442,216.86,216.75,1.5337]
[1733819604490,20.0,216.87,216.75,1.5337]
[1733819604694,0.8162,216.85,216.72,14.02291338]
[1733819604913,20.0,216.83,216.71,14.02291338]
[1733819605114,0.74017442,216.82,216.71,14.02291338]
[1733819605505,0.74017442,216.82,216.81,312.0]
[1733819605812,0.74017442,216.82,216.65,14.02291338]
[1733819605999,20.0,216.78,216.66,14.71504996]
[1733819607304,20.0,216.78,216.65,14.02291338]
[1733819607502,20.0,216.78,216.64,14.02291338]
[1733819608095,20.0,216.78,216.66,14.02291338]
[1733819608416,20.0,216.78,216.63,1.5337]
[1733819608417,20.0,216.78,216.68,14.02291338]
[1733819608916,20.0,216.78,216.77,312.5661186]
[1733819609695,2.57734448,216.83,216.77,312.5661186]
[1733819609696,0.74017442,216.83,216.77,312.5661186]
[1733819609913,20.74017442,216.83,216.77,0.5661186]
[1733819610118,0.74017442,216.83,216.77,0.5661186]
[1733819610437,0.74017442,216.84,216.77,0.5661186]
[1733819611134,0.8162,216.9,216.77,14.58903198]
[1733819611298,0.74017442,216.89,216.78,14.02291338]
[1733819612422,20.0,216.88,216.78,14.02291338]
[1733819612728,20.0,216.88,216.79,37.79979738]
[1733819612948,0.8162,216.95,216.87,312.0]
[1733819613097,0.74017442,216.94,216.87,312.0]
[1733819613593,0.74017442,216.94,216.84,15.53641338]
[1733819613835,0.74017442,216.99,216.86,14.02291338]
[1733819614042,0.74017442,216.99,216.85,24.46839333]
[1733819614043,0.74017442,216.99,216.87,14.02291338]
[1733819614320,0.74017442,216.99,216.85,0.69150933]
[1733819614321,0.74017442,216.99,216.88,14.02291338]
[1733819614524,0.74017442,216.99,216.85,14.71442271]
[1733819614728,0.74017442,217.0,216.84,1.5135]
[1733819615272,20.0,216.97,216.79,8.1629]
[1733819615423,20.0,216.93,216.79,8.1629]
[1733819615599,0.74017442,216.92,216.81,22.47713075]
[1733819616205,0.74017442,216.96,216.81,22.47713075]
[1733819616402,0.74017442,216.96,216.91,312.0]
[1733819618342,20.0,216.92,216.79,30.64003075]
[1733819618506,0.74017442,216.91,216.79,8.1629]
[1733819618909,0.74017442,216.91,216.79,1.5135]
[1733819619316,0.74017442,216.91,216.79,23.99063075]
[1733819619635,0.74017442,216.91,216.81,22.47713075]
[1733819619809,0.74017442,216.91,216.8,23.16879305]
[1733819620811,0.74017442,216.91,216.8,0.6916623]
[1733819621011,0.74017442,216.91,216.79,1.5135]
[1733819621330,0.74017442,216.91,216.87,312.0]
[1733819622234,0.74017442,216.91,216.79,23.99063075]
[1733819625114,0.74017442,216.91,216.88,312.0]
[1733819626522,0.74017442,216.91,216.79,23.99063075]
[1733819626935,0.74017442,216.91,216.79,1.5135]
[1733819627138,0.74017442,216.91,216.77,23.04324935]
[1733819627139,20.0,216.87,216.77,0.5661186]
[1733819627323,0.74017442,216.86,216.77,0.5661186]
[1733819629531,0.74017442,216.86,216.81,312.0]
[1733819631747,20.0,216.82,216.81,312.0]
[1733819632153,20.0,216.82,216.77,0.5661186]
[1733819632342,0.74017442,216.81,216.77,0.5661186]
[1733819634640,0.74017442,216.84,216.77,0.5661186]
[1733819635144,0.74017442,216.84,216.81,312.0]
[1733819635338,0.8162,216.85,216.81,312.0]
[1733819635642,0.8162,216.85,216.77,0.5661186]
[1733819636522,0.74017442,216.84,216.77,0.5661186]
[1733819638637,0.74017442,216.84,216.79,312.0]
[1733819639231,0.74017442,216.84,216.77,0.5661186]
[1733819642222,0.74017442,216.84,216.79,312.0]
[1733819642624,6.639,216.82,216.79,312.0]
[1733819642835,20.0,216.78,216.77,0.5661186]
[1733819644155,43.776884,216.78,216.77,0.5661186]
[1733819644464,20.0,216.78,216.77,0.5661186]
[1733819645430,0.74017442,216.81,216.77,0.5661186]
[1733819645635,0.8162,216.85,216.77,0.5661186]
[1733819645827,0.74017442,216.84,216.8,312.0]
[1733819646028,0.74017442,216.84,216.77,0.5661186]
[1733819646229,23.776884,216.83,216.77,0.5661186]
[1733819646443,20.0,216.8,216.77,0.5661186]
[1733819646628,0.74017442,216.79,216.77,0.5661186]
[1733819647964,20.0,216.8,216.77,0.5661186]
[1733819648126,0.74017442,216.82,216.77,0.5661186]
[1733819648456,0.74017442,216.84,216.77,0.5661186]
[1733819649147,0.74017442,216.84,216.81,312.0]
[1733819651235,0.74017442,216.84,216.77,0.5661186]
[1733819651443,20.0,216.8,216.77,0.5661186]
[1733819651746,0.74017442,216.79,216.77,0.5661186]
[1733819651944,23.776884,216.78,216.77,0.5661186]
[1733819652651,0.74017442,216.79,216.77,0.5661186]
[1733819652859,0.74017442,216.91,216.78,15.47281883]
[1733819653041,0.74017442,216.91,216.78,8.1392]
[1733819653546,0.74017442,216.91,216.79,0.69176187]
[1733819653751,0.74017442,216.91,216.79,14.74967909]
[1733819653946,1.81952314,216.95,216.79,14.74967909]
[1733819654155,0.74017442,216.94,216.87,312.0]
[1733819654354,23.776884,216.95,216.87,312.0]
[1733819654555,0.74017442,216.94,216.87,312.0]
[1733819654763,0.74017442,216.98,216.84,14.05791722]
[1733819654943,0.74017442,216.98,216.82,14.05791722]
[1733819655959,23.776884,216.97,216.82,14.05791722]
[1733819656167,20.0,216.94,216.82,14.05791722]
[1733819656372,0.74017442,216.93,216.82,14.05791722]
[1733819656780,0.74017442,216.96,216.82,14.05791722]
[1733819657684,20.0,216.95,216.9,312.0]
[1733819657974,0.74017442,216.94,216.9,312.0]
[1733819660172,23.776884,216.93,216.79,14.05791722]
[1733819660374,20.0,216.9,216.79,14.05791722]
[1733819660675,0.74017442,216.89,216.8,14.74962454]
[1733819660870,0.74017442,216.92,216.81,14.05791722]
[1733819661052,0.74017442,216.92,216.86,312.0]
[1733819661252,0.74017442,216.94,216.86,312.0]
[1733819661557,0.74017442,216.94,216.81,14.05791722]
[1733819661753,24.51705842,216.97,216.81,14.05791722]
[1733819661975,20.0,216.94,216.81,14.05791722]
[1733819662278,0.74017442,216.93,216.81,14.05791722]
[1733819662478,0.74017442,216.93,216.8,14.05791722]
[1733819663185,0.74017442,216.93,216.81,14.05791722]
[1733819664354,0.74017442,216.93,216.8,14.05791722]
[1733819664556,0.74017442,216.93,216.87,312.0]
[1733819664756,20.0,216.92,216.87,312.0]
[1733819665086,0.74017442,216.91,216.87,312.0]
[1733819665491,0.74017442,216.96,216.87,312.0]
[1733819665687,0.74017442,216.96,216.85,14.05791722]
[1733819665901,0.74017442,216.98,216.85,14.05791722]
[1733819666186,0.74017442,216.98,216.78,28.1392]
[1733819666187,0.74017442,216.98,216.87,14.05791722]
[1733819666358,0.74017442,216.98,216.89,14.05791722]
[1733819666547,0.74017442,217.0,216.9,14.74929857]
[1733819667556,20.0,216.98,216.9,0.69138135]
[1733819668556,0.74017442,217.0,216.95,312.0]
[1733819668780,0.74017442,217.02,216.95,312.0]
[1733819669276,0.74017442,217.02,216.9,14.05791722]
[1733819669450,0.74017442,217.02,216.91,14.74923888]
[1733819669654,0.74017442,217.02,216.92,14.05791722]
[1733819669850,0.74017442,217.04,216.92,14.05791722]
[1733819670070,0.74017442,217.04,216.91,14.74923888]
[1733819671078,20.0,217.03,216.92,14.05791722]
[1733819671267,0.74017442,217.02,216.93,0.69130618]
[1733819672265,0.74017442,217.02,216.99,312.0]
[1733819672979,20.0,217.03,216.99,312.0]
[1733819673587,20.0,217.03,216.93,14.05791722]
[1733819673755,0.74017442,217.02,216.93,14.05791722]
[1733819673961,0.74017442,217.02,216.92,14.05791722]
[1733819674182,0.74017442,217.02,216.93,0.69125032]
[1733819675084,0.74017442,217.02,216.93,14.74916754]
[1733819675275,0.74017442,217.05,216.94,14.05791722]
[1733819675477,1.55637442,217.09,216.95,14.74908554]
[1733819675663,1.55637442,217.09,216.96,1.646]
[1733819676583,43.776884,217.08,216.96,1.646]
[1733819676781,23.776884,217.06,216.91,2.337165]
[1733819676974,20.0,217.03,216.92,23.776884]
[1733819677166,20.0,217.03,216.93,14.74911718]
[1733819677685,0.74017442,217.08,217.0,312.0]
[1733819678092,0.74017442,217.1,217.0,14.05791722]
[1733819678288,0.74017442,217.1,216.99,14.05791722]
[1733819678476,0.74017442,217.1,217.0,0.69102629]
[1733819679086,20.0,217.08,216.98,14.74898319]
[1733819680780,20.0,217.08,216.99,14.05791722]
[1733819681078,20.0,217.08,217.07,312.0]
[1733819682270,20.0,217.08,216.97,14.05791722]
[1733819682486,0.74017442,217.07,216.97,14.05791722]
[1733819682778,20.0,217.08,216.98,14.74903128]
[1733819684290,0.74017442,217.07,216.96,20.76470869]
[1733819685171,22.77114457,217.08,216.98,14.05791722]
[1733819685373,22.77114457,217.08,217.04,312.0]
[1733819685891,0.74017442,217.07,217.04,312.0]
[1733819687196,22.77114457,217.08,217.04,312.0]
[1733819688291,0.74017442,217.1,217.01,14.05791722]
[1733819688589,0.74017442,217.12,217.02,0.69094678]
[1733819689391,0.74017442,217.12,217.02,14.748864]
[1733819689999,0.74017442,217.12,217.02,0.69094678]
[1733819690594,0.74017442,217.12,217.01,0.69099297]
[1733819691000,23.55463994,217.12,217.01,0.69099297]
[1733819691297,23.55463994,217.12,217.07,312.0]
[1733819700209,20.0,217.08,217.0,1.6057]
[1733819700423,0.74017442,217.07,217.0,1.6057]
[1733819701087,0.74017442,217.1,217.0,1.6057]
[1733819701287,22.81446552,217.12,217.02,8.97222485]
[1733819701288,0.74017442,217.11,217.02,8.97222485]
[1733819701511,0.74017442,217.11,217.01,0.69105652]
[1733819702531,0.74017442,217.12,217.01,0.69105652]
[1733819702893,0.74017442,217.12,217.01,9.66328137]
[1733819703093,0.74017442,217.12,217.07,312.0]
[1733819703600,0.74017442,217.12,217.01,8.97222485]
[1733819703799,0.74017442,217.12,217.02,8.97222485]
[1733819704026,0.8162,217.2,217.07,8.97222485]
[1733819704027,2.69132831,217.2,217.07,8.97222485]
[1733819704194,0.74017442,217.21,217.11,8.97222485]
[1733819704401,0.74017442,217.21,217.11,9.66290352]
[1733819704725,1.55637442,217.25,217.15,8.97222485]
[1733819705013,1.55637442,217.25,217.13,8.97222485]
[1733819705221,1.55637442,217.25,217.14,0.69060345]
[1733819705400,1.55637442,217.25,217.14,9.6628283]
[1733819705594,1.55637442,217.25,217.15,8.97222485]
[1733819705798,0.74017442,217.26,217.19,8.97222485]
[1733819706026,0.74017442,217.33,217.21,8.97222485]
[1733819706316,0.74017442,217.33,217.24,8.97222485]
[1733819706518,6.5211,217.35,217.24,8.97222485]
[1733819706725,0.74017442,217.34,217.3,312.0]
[1733819707019,5.78768173,217.43,217.3,312.0]
[1733819707020,7.26127442,217.41,217.3,312.0]
[1733819707331,7.26127442,217.41,217.2,1.6057]
[1733819707332,7.26127442,217.41,217.28,13.98618684]
[1733819708034,7.26127442,217.41,217.3,13.98618684]
[1733819708210,9.97273271,217.41,217.27,0.69008645]
[1733819708723,9.97273271,217.41,217.23,13.98618684]
[1733819708927,9.97273271,217.41,217.22,0.69019083]
[1733819708928,10.0,217.4,217.22,0.69019083]
[1733819709132,24.51705842,217.39,217.2,1.6057]
[1733819709333,24.51705842,217.39,217.23,13.98618684]
[1733819709724,23.776884,217.35,217.21,14.67656512]
[1733819709913,20.0,217.32,217.21,14.67656512]
[1733819710101,0.74017442,217.31,217.29,312.0]
[1733819710302,20.0,217.32,217.29,312.0]
[1733819710526,20.0,217.28,217.2,1.6057]
[1733819710720,0.74017442,217.27,217.2,1.6057]
[1733819711042,0.74017442,217.27,217.17,6.1954]
[1733819711436,20.0,217.23,217.15,1.6057]
[1733819711735,20.0,217.23,217.16,0.69057059]
[1733819712044,20.0,217.23,217.15,1.6057]
[1733819712335,20.0,217.23,217.15,2.29625923]
[1733819712545,20.0,217.23,217.15,0.69055923]
[1733819712888,20.0,217.19,217.09,1.5534]
[1733819713016,20.0,217.19,217.1,14.67694792]
[1733819713210,0.74017442,217.26,217.14,13.98618684]
[1733819713538,20.0,217.24,217.16,13.98618684]
[1733819713703,20.0,217.24,217.17,0.69047236]
[1733819713909,20.74017442,217.27,217.17,0.69047236]
[1733819714236,20.74017442,217.27,217.15,13.98618684]
[1733819714404,20.74017442,217.27,217.13,13.98618684]
[1733819714606,20.74017442,217.27,217.14,0.69053689]
[1733819714816,20.0,217.23,217.14,0.69053689]
[1733819715019,20.0,217.23,217.11,14.67681357]
[1733819715213,2.78073234,217.28,217.15,14.67681357]
[1733819715536,20.74017442,217.27,217.15,14.67681357]
[1733819715736,20.0,217.27,217.17,13.98618684]
[1733819715937,20.0,217.27,217.18,0.69040798]
[1733819716136,0.74017442,217.29,217.18,0.69040798]
[1733819716354,0.74017442,217.29,217.16,0.69044634]
[1733819716658,0.74017442,217.29,217.22,312.0]
[1733819717028,0.74017442,217.29,217.15,13.98618684]
[1733819717360,20.0,217.27,217.16,14.67662785]
[1733819717538,20.0,217.27,217.16,0.69044101]
[1733819717848,20.0,217.27,217.13,13.98618684]
[1733819717849,0.74017442,217.26,217.13,13.98618684]
[1733819718060,0.74017442,217.26,217.14,0.69051663]
[1733819719927,0.74017442,217.26,217.11,33.98618684]
[1733819719928,0.74017442,217.26,217.12,0.69056503]
[1733819720157,0.74017442,217.26,217.21,312.0]
[1733819723028,0.74017442,217.26,217.11,13.98618684]
[1733819723254,0.74017442,217.26,217.12,0.69058011]
[1733819725064,0.74017442,217.26,217.09,1.5534]
[1733819725065,23.776884,217.25,217.09,16.23023172]
[1733819725258,20.0,217.22,217.09,2.24404488]
[1733819725563,0.74017442,217.21,217.09,2.24404488]
[1733819726069,0.74017442,217.21,217.16,312.0]
[1733819726470,0.74017442,217.21,217.09,1.5534]
[1733819726764,0.74017442,217.21,217.09,16.23028373]
[1733819728036,0.74017442,217.21,217.09,2.24409689]
[1733819728366,23.776884,217.2,217.06,6.1379]
[1733819728570,20.0,217.17,217.05,0.69082901]
[1733819728743,0.74017442,217.16,217.04,1.5585]
[1733819728958,20.0,217.12,217.02,0.69087632]
[1733819729135,0.74017442,217.11,217.01,6.5113]
[1733819729337,0.74017442,217.11,217.0,0.6910067]
[1733819729645,0.74017442,217.11,217.07,312.0]
[1733819730462,20.0,217.12,216.99,15.54468684]
[1733819730676,20.0,217.12,217.0,0.69094359]
[1733819731284,0.74017442,217.11,217.0,0.69094359]
[1733819731566,0.74017442,217.11,216.99,1.5585]
[1733819731802,0.74017442,217.11,217.0,0.69103772]
[1733819732365,0.74017442,217.11,216.99,1.5585]
[1733819732773,0.74017442,217.11,217.0,0.69103564]
[1733819733392,0.74017442,217.11,217.07,312.0]
[1733819738372,20.0,217.12,216.99,15.54468684]
[1733819738592,0.8162,217.19,217.03,13.98618684]
[1733819738890,0.74017442,217.16,217.04,0.69081095]
[1733819739975,24.51705842,217.18,217.02,0.69080983]
[1733819740296,24.51705842,217.18,217.02,14.67699667]
[1733819741002,20.0,217.15,217.02,14.67699667]
[1733819741383,20.0,217.15,217.14,312.0]
[1733819743808,0.8162,217.24,217.14,312.0]